fUST/lending_fUST_20250428
["ID","MTS","AMOUNT","RATE_DAILY","PERIOD"]
[359207949,1745813446960,-400.0,0.00033424,2]
[359207950,1745813446970,-400.0,0.00033424,2]
[359207952,1745813446982,-400.0,0.00033424,2]
[359207953,1745813446992,-308.74523059,0.00033424,2]
[359207954,1745813447002,-400.0,0.00033424,2]
[359207955,1745813447012,-300.0,0.00033424,2]
[359207956,1745813447022,-400.0,0.00033424,2]
[359207957,1745813447032,-557.14862196,0.00033424,2]
[359207958,1745813447041,-400.0,0.00033424,2]
[359207959,1745813447051,-400.0,0.00033424,2]
[359207960,1745813447060,-312.80235785,0.00033424,2]
[359207961,1745813447070,-303.77741873,0.00033424,2]
[359207962,1745813447080,-300.0,0.00033424,2]
[359207963,1745813447089,-400.0,0.00033424,2]
[359207964,1745813447098,-400.0,0.00033424,2]
[359207965,1745813447107,-400.0,0.00033424,2]
[359207966,1745813447117,-400.0,0.00033424,2]
[359207967,1745813447127,-307.49423109,0.00033424,2]
[359207968,1745813447136,-400.0,0.00033424,2]
[359207969,1745813447146,-400.0,0.00033424,2]
[359207970,1745813447155,-400.0,0.00033424,2]
[359207971,1745813447165,-306.93939408,0.00033424,2]
[359207972,1745813447175,-400.0,0.00033424,2]
[359207973,1745813447184,-261.73397465,0.00033424,2]
[359207974,1745813447194,-313.16536239,0.00033424,2]
[359207975,1745813447203,-400.0,0.00033424,2]
[359207976,1745813447212,-305.66960861,0.00033424,2]
[359207978,1745813447222,-313.02122784,0.00033424,2]
[359207979,1745813447232,-400.0,0.00033424,2]
[359207980,1745813447242,-300.0,0.00033424,2]
[359207981,1745813447251,-305.54718005,0.00033424,2]
[359207982,1745813447262,-354.09606272,0.00033424,2]
[359207983,1745813447271,-400.0,0.00033424,2]
[359207984,1745813447280,-400.0,0.00033424,2]
[359207985,1745813447291,-400.0,0.00033424,2]
[359207986,1745813447302,-400.0,0.00033424,2]
[359207987,1745813447312,-881.22,0.00033424,2]
[359207988,1745813447322,-400.0,0.00033424,2]
[359207989,1745813447331,-400.0,0.00033424,2]
[359207990,1745813447341,-400.0,0.00033424,2]
[359207991,1745813447351,-400.0,0.00033424,2]
[359207992,1745813447361,-400.0,0.00033424,2]
[359207993,1745813447371,-519.45781076,0.00033424,2]
[359207994,1745813447382,-400.0,0.00033424,2]
[359207995,1745813447392,-400.0,0.00033424,2]
[359207996,1745813447402,-400.0,0.00033424,2]
[359207997,1745813447412,-400.0,0.00033424,2]
[359207998,1745813447421,-400.0,0.00033424,2]
[359207999,1745813447431,-400.0,0.00033424,2]
[359208000,1745813447440,-400.0,0.00033424,2]
[359208001,1745813447450,-305.39258245,0.00033424,2]
[359208003,1745813447459,-400.0,0.00033424,2]
[359208004,1745813447469,-400.0,0.00033424,2]
[359208005,1745813447478,-314.45681951,0.00033424,2]
[359208006,1745813447487,-478.42,0.00033424,2]
[359208007,1745813447497,-212.86847947,0.00033424,2]
[359208008,1745813447618,-539.32982316,0.000317,2]
[359208009,1745813447630,-400.0,0.00032876,2]
[359208010,1745813447640,-60.67017684,0.00032876,2]
[359208011,1745813447710,-347.0,0.00032866,2]
[359208012,1745813447720,-339.32982316,0.00032876,2]
[359208013,1745813447729,-400.0,0.00032876,2]
[359208014,1745813447740,-400.0,0.00032876,2]
[359208015,1745813447749,-400.0,0.00032876,2]
[359208017,1745813447759,-366.979068,0.0003314,14]
[359208018,1745813447768,-400.0,0.0003315,2]
[359208019,1745813447777,-400.0,0.0003315,2]
[359208020,1745813447789,-400.0,0.0003315,2]
[359208022,1745813447798,-72.69110934,0.0003315,2]
[359208023,1745813447883,-327.30889066,0.0003315,2]
[359208024,1745813447893,-449.70144648,0.0003315,2]
[359208025,1745813447907,-366.979068,0.000332,14]
[359208026,1745813447916,-187.13152053,0.00033424,2]
[359208027,1745813447926,-360.80768655,0.00033424,2]
[359208028,1745813447935,-400.0,0.00033424,2]
[359208029,1745813447945,-400.0,0.00033424,2]
[359208030,1745813447954,-300.0,0.00033424,2]
[359208031,1745813447963,-115.85794198,0.00033424,2]
[359208032,1745813447976,-284.14205802,0.00033424,2]
[359208033,1745813447985,-400.0,0.00033424,2]
[359208034,1745813447995,-400.0,0.00033424,2]
[359208035,1745813448005,-203.0211673,0.00033424,2]
[359208037,1745813448014,-400.0,0.00033424,2]
[359208038,1745813448024,-203.29883282,0.00033424,2]
[359208039,1745813448034,-371.29599662,0.00033424,2]
[359208040,1745813448047,-28.70400338,0.00033424,2]
[359208041,1745813448057,-400.0,0.00033424,2]
[359208043,1745813448068,-400.0,0.00033424,2]
[359208044,1745813448078,-400.0,0.00033424,2]
[359208045,1745813448088,-138.56137587,0.00033424,2]
[359208046,1745813448135,-400.0,0.00032876,2]
[359208047,1745813448144,-400.0,0.00032876,2]
[359208048,1745813448155,-208.31224722,0.000329,10]
[359208050,1745813448164,-208.31224721,0.00033141,11]
[359208051,1745813448174,-400.0,0.0003315,2]
[359208052,1745813448183,-400.0,0.0003315,2]
[359208053,1745813448193,-208.31224721,0.00033383,11]
[359208054,1745813448202,-261.43862413,0.00033424,2]
[359208055,1745813448212,-400.0,0.00033424,2]
[359208056,1745813448222,-825.53,0.00033424,2]
[359208057,1745813448232,-400.0,0.00033424,2]
[359208058,1745813448241,-400.0,0.00033424,2]
[359208059,1745813448251,-790.37,0.00033424,2]
[359208060,1745813448261,-400.0,0.00033424,2]
[359208061,1745813448271,-202.16817782,0.00033424,2]
[359208062,1745813448281,-400.0,0.00033424,2]
[359208063,1745813448292,-206.5557671,0.00033424,2]
[359208064,1745813448301,-400.0,0.00033424,2]
[359208065,1745813448311,-756.1,0.00033424,2]
[359208066,1745813448320,-400.0,0.00033424,2]
[359208067,1745813448330,-320.89154565,0.00033424,2]
[359208068,1745813448339,-400.0,0.00033424,2]
[359208070,1745813448349,-400.0,0.00033424,2]
[359208071,1745813448359,-400.0,0.00033424,2]
[359208072,1745813448368,-400.0,0.00033424,2]
[359208073,1745813448378,-400.0,0.00033424,2]
[359208074,1745813448388,-400.0,0.00033424,2]
[359208075,1745813448399,-400.0,0.00033424,2]
[359208076,1745813448408,-400.0,0.00033424,2]
[359208077,1745813448418,-400.0,0.00033424,2]
[359208078,1745813448427,-400.0,0.00033424,2]
[359208079,1745813448437,-400.0,0.00033424,2]
[359208081,1745813448447,-210.1465928,0.00033424,2]
[359208082,1745813448457,-400.0,0.00033424,2]
[359208083,1745813448466,-400.0,0.00033424,2]
[359208084,1745813448475,-400.0,0.00033424,2]
[359208085,1745813448485,-400.0,0.00033424,2]
[359208086,1745813448494,-400.0,0.00033424,2]
[359208087,1745813448504,-400.0,0.00033424,2]
[359208088,1745813448514,-400.0,0.00033424,2]
[359208089,1745813448524,-400.0,0.00033424,2]
[359208090,1745813448533,-400.0,0.00033424,2]
[359208091,1745813448542,-400.0,0.00033424,2]
[359208092,1745813448552,-400.0,0.00033424,2]
[359208093,1745813448561,-400.0,0.00033698,2]
[359208094,1745813448570,-500.0,0.00033698,2]
[359208095,1745813448580,-400.0,0.00033698,2]
[359208096,1745813448589,-400.0,0.00033698,2]
[359208097,1745813448599,-573.01,0.00033698,2]
[359208098,1745813448608,-479.1,0.00033698,2]
[359208099,1745813448617,-400.0,0.00033698,2]
[359208100,1745813448626,-209.59665132,0.00033698,2]
[359208101,1745813448636,-400.0,0.00033698,2]
[359208102,1745813448645,-218.46788004,0.00033698,2]
[359208103,1745813448656,-511.75981051,0.00033698,2]
[359208104,1745813448665,-494.9320572,0.00033698,2]
[359208105,1745813448674,-400.0,0.00033698,2]
[359208107,1745813448684,-150.0,0.00033698,2]
[359208108,1745813448693,-400.0,0.00033698,2]
[359208109,1745813448702,-400.0,0.00033698,2]
[359208110,1745813448711,-226.64115908,0.00033698,2]
[359208111,1745813448720,-239.54467008,0.00033698,2]
[359208112,1745813448729,-400.0,0.00033698,2]
[359208113,1745813448739,-400.0,0.00033698,2]
[359208114,1745813448748,-300.23925079,0.00033698,2]
[359208115,1745813448757,-400.0,0.00033698,2]
[359208116,1745813448766,-400.0,0.00033698,2]
[359208117,1745813448776,-400.0,0.00033698,2]
[359208118,1745813448785,-400.0,0.00033698,2]
[359208119,1745813448795,-400.0,0.00033698,2]
[359208120,1745813448805,-500.0,0.00033698,2]
[359208121,1745813448815,-400.0,0.00033698,2]
[359208122,1745813448824,-373.44372977,0.00033698,2]
[359208123,1745813448834,-400.0,0.00033698,2]
[359208124,1745813448844,-400.0,0.00033698,2]
[359208125,1745813448854,-400.0,0.00033698,2]
[359208126,1745813448863,-400.0,0.00033698,2]
[359208127,1745813448872,-388.80040299,0.00033698,2]
[359208128,1745813448881,-400.0,0.00033698,2]
[359208129,1745813448890,-400.0,0.00033698,2]
[359208130,1745813448902,-881.22,0.00033698,2]
[359208131,1745813448912,-400.0,0.00033698,2]
[359208132,1745813448921,-400.0,0.00033698,2]
[359208133,1745813448931,-523.29130433,0.00033698,2]
[359208134,1745813448941,-400.0,0.00033698,2]
[359208135,1745813448953,-400.0,0.00033698,2]
[359208137,1745813448963,-500.0,0.00033698,2]
[359208138,1745813448972,-205.63976458,0.00033698,2]
[359208139,1745813448983,-412.46004652,0.00033698,2]
[359208140,1745813448993,-400.0,0.00033698,2]
[359208141,1745813449003,-400.0,0.00033698,2]
[359208142,1745813449013,-400.0,0.00033698,2]
[359208143,1745813449023,-400.0,0.00033698,2]
[359208144,1745813449033,-478.42,0.00033698,2]
[359208145,1745813449043,-500.0,0.00033698,2]
[359208146,1745813449053,-417.97,0.00033698,2]
[359208147,1745813449063,-446.5312827,0.00033698,2]
[359208148,1745813449072,-400.0,0.00033698,2]
[359208149,1745813449083,-400.0,0.00033698,2]
[359208150,1745813449092,-400.0,0.00033698,2]
[359208151,1745813449102,-400.0,0.00033698,2]
[359208152,1745813449112,-400.0,0.00033698,2]
[359208153,1745813449122,-400.0,0.00033698,2]
[359208154,1745813449132,-536.31282759,0.00033698,2]
[359208155,1745813449142,-400.0,0.00033698,2]
[359208156,1745813449152,-400.0,0.00033698,2]
[359208157,1745813449162,-415.92145345,0.00033698,2]
[359208158,1745813449171,-825.53,0.00033698,2]
[359208159,1745813449181,-400.0,0.00033698,2]
[359208160,1745813449190,-400.0,0.00033698,2]
[359208161,1745813449200,-790.37,0.00033698,2]
[359208162,1745813449209,-410.67007285,0.00033698,2]
[359208164,1745813449219,-400.0,0.00033698,2]
[359208165,1745813449228,-307.08786606,0.00033698,2]
[359208166,1745813449238,-756.1,0.00033698,2]
[359208167,1745813449247,-400.0,0.00033698,2]
[359208168,1745813449257,-400.0,0.00033698,2]
[359208169,1745813449267,-400.0,0.00033698,2]
[359208170,1745813449276,-400.0,0.00033698,2]
[359208171,1745813449285,-400.0,0.00033698,2]
[359208172,1745813449295,-400.0,0.00033698,2]
[359208173,1745813449410,-400.0,0.00033698,2]
[359208174,1745813449420,-449.52611323,0.00033698,2]
[359208175,1745813449430,-479.27636129,0.00033698,2]
[359208176,1745813449439,-449.11966942,0.00033698,2]
[359208177,1745813449448,-468.74565352,0.00033698,2]
[359208178,1745813449457,-373.24726276,0.00033698,2]
[359208179,1745813449467,-400.0,0.00033698,2]
[359208180,1745813449476,-400.0,0.00033698,2]
[359208181,1745813449486,-400.0,0.00033698,2]
[359208182,1745813449495,-400.0,0.00033698,2]
[359208183,1745813449504,-400.0,0.00033698,2]
[359208184,1745813449515,-400.0,0.00033698,2]
[359208185,1745813449524,-400.0,0.00033698,2]
[359208186,1745813449534,-400.0,0.00033698,2]
[359208187,1745813449544,-415.51329981,0.00033698,2]
[359208188,1745813449553,-500.0,0.00033936,5]
[359208189,1745813449563,-500.64689673,0.00033936,5]
[359208190,1745813449573,-419.2,0.00033972,2]
[359208191,1745813449582,-400.0,0.00033972,2]
[359208192,1745813449591,-573.01,0.00033972,2]
[359208193,1745813449600,-400.0,0.00033972,2]
[359208194,1745813449610,-426.87655154,0.00033972,2]
[359208195,1745813449619,-410.03287421,0.00033972,2]
[359208196,1745813449629,-400.0,0.00033972,2]
[359208197,1745813449639,-400.0,0.00033972,2]
[359208198,1745813449648,-400.0,0.00033972,2]
[359208199,1745813449658,-400.0,0.00033972,2]
[359208200,1745813449667,-400.0,0.00033972,2]
[359208201,1745813449676,-400.0,0.00033972,2]
[359208202,1745813449685,-510.2352336,0.00033972,2]
[359208203,1745813449694,-500.0,0.00033972,2]
[359208204,1745813449703,-411.74488055,0.00033972,2]
[359208205,1745813449713,-400.0,0.00033972,2]
[359208206,1745813449722,-400.0,0.00033972,2]
[359208207,1745813449731,-400.0,0.00033972,2]
[359208208,1745813449743,-500.0,0.00033972,2]
[359208210,1745813449753,-400.0,0.00033972,2]
[359208211,1745813449763,-881.22,0.00033972,2]
[359208212,1745813449772,-400.0,0.00033972,2]
[359208213,1745813449781,-400.0,0.00033972,2]
[359208214,1745813449790,-400.0,0.00033972,2]
[359208215,1745813449800,-400.0,0.00033972,2]
[359208216,1745813449809,-400.0,0.00033972,2]
[359208217,1745813449819,-400.0,0.00033972,2]
[359208218,1745813449828,-400.0,0.00033972,2]
[359208219,1745813449838,-400.0,0.00033972,2]
[359208220,1745813449847,-478.42,0.00033972,2]
[359208221,1745813449856,-400.0,0.00033972,2]
[359208222,1745813449866,-400.0,0.00033972,2]
[359208223,1745813449876,-400.0,0.00033972,2]
[359208224,1745813449885,-400.0,0.00033972,2]
[359208225,1745813449895,-402.92601112,0.00033972,2]
[359208226,1745813449909,-519.58002696,0.00033972,2]
[359208227,1745813449918,-400.0,0.00033972,2]
[359208228,1745813449927,-400.0,0.00033972,2]
[359208229,1745813449937,-825.53,0.00033972,2]
[359208230,1745813449946,-400.0,0.00033972,2]
[359208231,1745813449955,-400.0,0.00033972,2]
[359208232,1745813449965,-790.37,0.00033972,2]
[359208233,1745813449975,-400.0,0.00033972,2]
[359208234,1745813449985,-756.1,0.00033972,2]
[359208235,1745813449994,-400.0,0.00033972,2]
[359208237,1745813450004,-400.0,0.00033972,2]
[359208238,1745813450013,-400.0,0.00033972,2]
[359208239,1745813450022,-400.0,0.00033972,2]
[359208240,1745813450032,-400.0,0.00033972,2]
[359208241,1745813450041,-400.0,0.00033972,2]
[359208243,1745813450050,-400.0,0.00033972,2]
[359208244,1745813450060,-400.0,0.00033972,2]
[359208245,1745813450070,-206.93601793,0.00033972,2]
[359208246,1745813450079,-400.0,0.00033972,2]
[359208247,1745813450088,-400.0,0.00033972,2]
[359208248,1745813450097,-400.0,0.00033972,2]
[359208249,1745813450108,-400.0,0.00033972,2]
[359208250,1745813450117,-314.15684933,0.00033972,2]
[359208251,1745813450127,-400.0,0.00033972,2]
[359208252,1745813450137,-1577.31974557,0.00034,30]
[359208253,1745813450151,-189.83025443,0.00034,30]
[359208254,1745813450160,-254.13987057,0.00034246,2]
[359208612,1745813496911,-2000.0,0.00039255,120]
[359208613,1745813496937,-150.0,0.00039255,31]
[359208615,1745813496961,-174.0,0.00039255,31]
[359208616,1745813496985,-269.0,0.00039255,31]
[359208617,1745813497012,-277.0,0.00039255,31]
[359208618,1745813497036,-426.0,0.00039255,31]
[359208619,1745813497060,-150.0,0.00039255,31]
[359208620,1745813497084,-150.0,0.00039255,31]
[359208621,1745813497108,-260.0,0.00039255,31]
[359208622,1745813497132,-520.0,0.00039255,31]
[359208624,1745813497156,-1040.0,0.00039255,31]
[359208625,1745813497180,-1313.0,0.00039255,31]
[359208626,1745813497205,-2024.0,0.00039255,31]
[359208627,1745813497229,-2080.0,0.00039255,31]
[359208629,1745813497253,-3212.0,0.00039255,31]
[359208630,1745813497276,-150.0,0.00039255,31]
[359208631,1745813497299,-150.0,0.00039255,31]
[359208632,1745813497321,-150.0,0.00039255,31]
[359208633,1745813497343,-288.0,0.00039255,31]
[359208634,1745813497367,-577.0,0.00039255,31]
[359208635,1745813497390,-729.0,0.00039255,31]
[359208637,1745813497413,-1123.0,0.00039255,31]
[359208638,1745813497437,-1154.0,0.00039255,31]
[359208639,1745813497461,-1782.0,0.00039255,31]
[359208640,1745813497485,-150.0,0.00039255,31]
[359208641,1745813497508,-229.0,0.00039255,31]
[359208642,1745813497531,-459.0,0.00039255,31]
[359208644,1745813497553,-579.0,0.00039255,31]
[359208645,1745813497577,-892.0,0.00039255,31]
[359208646,1745813497600,-917.0,0.00039255,31]
[359208647,1745813497624,-1416.0,0.00039255,31]
[359208648,1745813497648,-1427.62816496,0.00039255,80]
[359208649,1745813497672,-1503.24752776,0.00039255,120]
[359208650,1745813497696,-510.0,0.00039255,120]
[359208651,1745813497719,-100000.0,0.00039255,30]
[359208652,1745813497742,-100000.0,0.00039255,30]
[359208653,1745813497766,-100000.0,0.00039255,30]
[359208654,1745813497789,-100000.0,0.00039255,30]
[359208655,1745813497812,-271.8,0.00039255,120]
[359208656,1745813497835,-100000.0,0.00039255,30]
[359208658,1745813497859,-100000.0,0.00039255,30]
[359208659,1745813497882,-100000.0,0.00039255,30]
[359208660,1745813497905,-100000.0,0.00039255,30]
[359208661,1745813497930,-7659.74560279,0.00039255,30]
[359208662,1745813497954,-100000.0,0.00039255,30]
[359208663,1745813497978,-100000.0,0.00039255,30]
[359208664,1745813498112,-100000.0,0.00039255,30]
[359208665,1745813498136,-100000.0,0.00039255,30]
[359208667,1745813498160,-612.26619354,0.00039255,30]
[359208668,1745813498183,-872.30850226,0.00039255,120]
[359208669,1745813498206,-234.3655743,0.00039255,60]
[359208670,1745813498229,-1175.53712525,0.00039255,30]
[359208671,1745813498252,-259.15818308,0.00039255,120]
[359208672,1745813498276,-330.91560162,0.00039255,60]
[359208673,1745813498300,-910.00866997,0.00039255,120]
[359208674,1745813498324,-683.89261673,0.00039255,120]
[359208675,1745813498347,-3230.34401447,0.00039255,30]
[359208676,1745813498369,-240.82074905,0.00039255,120]
[359208677,1745813498392,-2000.0,0.00039255,120]
[359208679,1745813498415,-242.41467041,0.00039255,30]
[359208680,1745813498439,-1093.55142691,0.00039255,120]
[359208681,1745813498462,-168.96148435,0.00039255,30]
[359208683,1745813498485,-1001.0394623,0.00039255,120]
[359208684,1745813498508,-163.60457872,0.00039255,30]
[359208685,1745813498531,-443.38887785,0.00039255,120]
[359208686,1745813498553,-2318.49775437,0.00039255,120]
[359208687,1745813498577,-423.82358174,0.00039255,120]
[359208688,1745813498600,-225.97567662,0.00039255,120]
[359208689,1745813498622,-214.52314262,0.00039255,120]
[359208690,1745813498645,-1960.14910803,0.00039255,120]
[359208691,1745813498667,-314.93828773,0.00039255,120]
[359208692,1745813498691,-202.44840237,0.00039255,120]
[359208694,1745813498713,-504.60703571,0.00039255,30]
[359208695,1745813498736,-965.0,0.00039255,31]
[359208696,1745813498759,-158.0,0.00039255,31]
[359208697,1745813498782,-379.0,0.00039255,120]
[359208698,1745813498804,-2399.65658188,0.00039255,120]
[359208699,1745813498827,-4693.6871739,0.00039255,30]
[359208701,1745813498852,-357.17064501,0.00039255,120]
[359208702,1745813498878,-4141.90072727,0.00039255,60]
[359208703,1745813498902,-464.4675088,0.00039255,120]
[359208704,1745813498931,-1563.04822722,0.00039255,120]
[359208706,1745813498955,-839.35693703,0.00039255,120]
[359208707,1745813498978,-5423.23537143,0.00039255,120]
[359208708,1745813499006,-469.85777644,0.00039255,30]
[359208709,1745813499030,-1341.74563821,0.00039255,120]
[359208710,1745813499053,-3367.92578902,0.00039255,60]
[359208711,1745813499076,-4448.14917185,0.00039255,60]
[359208712,1745813499098,-3162.36974531,0.00039255,30]
[359208713,1745813499123,-503.142469,0.00039255,120]
[359208714,1745813499149,-2681.09597347,0.00039255,120]
[359208715,1745813499173,-176.71056112,0.00039255,30]
[359208716,1745813499196,-1663.18332358,0.00039255,120]
[359208718,1745813499218,-204.13403737,0.00039255,30]
[359208719,1745813499243,-451.78497088,0.00039255,120]
[359208721,1745813499266,-1072.79911164,0.00039255,120]
[359208722,1745813499289,-271.8,0.00039255,120]
[359208724,1745813499312,-1000.0,0.00039255,120]
[359208725,1745813499336,-1000.0,0.00039255,120]
[359208726,1745813499365,-500.0,0.00039255,120]
[359208727,1745813499388,-989.0,0.00039255,120]
[359208728,1745813499412,-1038.54,0.00039255,60]
[359208729,1745813499437,-1935.45008727,0.00039255,120]
[359208731,1745813499460,-2000.0,0.00039255,120]
[359208732,1745813499485,-2000.0,0.00039255,120]
[359208734,1745813499510,-2000.0,0.00039255,120]
[359208735,1745813499532,-106507.14525625,0.00039255,120]
[359208736,1745813499555,-9796.0814713,0.00039255,35]
[359208738,1745813499580,-26184.76666051,0.00039255,120]
[359208739,1745813499603,-4177.07477239,0.00039255,120]
[359208740,1745813499629,-1004124.0,0.00039255,60]
[359208741,1745813499655,-150.0,0.00039255,31]
[359208742,1745813499679,-1420.35340655,0.00039255,60]
[359208743,1745813499704,-1320.24423473,0.00039255,60]
[359208745,1745813499728,-150.0,0.00039255,31]
[359208746,1745813499752,-150.0,0.00039255,31]
[359208748,1745813499776,-2404.64600306,0.00039255,120]
[359208749,1745813499800,-150.0,0.00039255,31]
[359208751,1745813499827,-218.0,0.00039255,31]
[359208752,1745813499851,-436.0,0.00039255,31]
[359208754,1745813499876,-551.0,0.00039255,31]
[359208755,1745813499898,-849.0,0.00039255,31]
[359208756,1745813499924,-873.0,0.00039255,31]
[359208758,1745813499948,-1348.0,0.00039255,31]
[359208759,1745813499973,-162.91029819,0.00039255,120]
[359208761,1745813499997,-529375.60405381,0.00039255,120]
[359208784,1745813505742,-12233.25822674,0.00039255,120]
[359208785,1745813505765,-761.3098838,0.00039255,35]
[359208786,1745813505789,-350437.99896652,0.00039255,120]
[359208787,1745813505812,-500.0,0.00039255,30]
[359208788,1745813505836,-535.0,0.00039255,30]
[359208789,1745813505859,-75911.22630907,0.00039255,36]
[359208790,1745813505882,-5753.28677104,0.00039255,90]
[359208791,1745813505905,-150.0,0.00039255,31]
[359208792,1745813505930,-183.0,0.00039255,31]
[359208793,1745813505954,-366.0,0.00039255,31]
[359208794,1745813505987,-733.0,0.00039255,31]
[359208795,1745813506016,-1465.0,0.00039255,31]
[359208796,1745813506040,-1850.0,0.00039255,31]
[359208797,1745813506064,-2852.0,0.00039255,31]
[359208798,1745813506087,-2930.0,0.00039255,31]
[359208799,1745813506111,-4527.0,0.00039255,31]
[359208800,1745813506135,-604092.0,0.00039255,60]
[359208801,1745813506159,-113379.90898634,0.00039255,30]
[359208802,1745813506184,-203766.44520878,0.00039255,120]
[359208803,1745813506208,-2988.97754534,0.00039255,30]
[359208804,1745813506232,-27426.50360593,0.00039255,60]
[359208805,1745813506256,-2690.21805521,0.00039255,120]
[359208806,1745813506281,-2090.59620877,0.00039255,120]
[359208807,1745813506306,-150.0,0.00039255,31]
[359208808,1745813506353,-3844.0,0.00039255,30]
[359208809,1745813506388,-1548.0,0.00039255,120]
[359208810,1745813506424,-732.75802615,0.00039255,39]
[359208811,1745813506462,-35019.85965413,0.00039255,120]
[359208812,1745813506495,-4355.212681,0.00039255,120]
[359208813,1745813506531,-74982.52795921,0.00039255,32]
[359208814,1745813506564,-4460.06016124,0.00039255,120]
[359208815,1745813506592,-11164.37333955,0.00039255,120]
[359208816,1745813506625,-5621.4756752,0.00039255,30]
[359208817,1745813506658,-1099.1164681,0.00039255,35]
[359208818,1745813506693,-413.26989473,0.00039255,30]
[359208819,1745813506718,-243.01606161,0.00039255,120]
[359208820,1745813506752,-1169.68,0.00039255,60]
[359208821,1745813506783,-1169.68,0.00039255,60]
[359208822,1745813506816,-1169.68,0.00039255,60]
[359208823,1745813506847,-1169.68,0.00039255,60]
[359208824,1745813506879,-1169.68,0.00039255,60]
[359208825,1745813506911,-1169.68,0.00039255,60]
[359208826,1745813506945,-1169.68,0.00039255,60]
[359208827,1745813506976,-1169.68,0.00039255,60]
[359208828,1745813507007,-1169.68,0.00039255,60]
[359208829,1745813507037,-1169.68,0.00039255,60]
[359208830,1745813507067,-1169.68,0.00039255,60]
[359208831,1745813507098,-1169.68,0.00039255,60]
[359208832,1745813507131,-1169.68,0.00039255,60]
[359208833,1745813507168,-1169.68,0.00039255,60]
[359208834,1745813507194,-1169.68,0.00039255,60]
[359208835,1745813507220,-1169.68,0.00039255,60]
[359208836,1745813507244,-1169.68,0.00039255,60]
[359208837,1745813507269,-1169.68,0.00039255,60]
[359208838,1745813507293,-1169.68,0.00039255,60]
[359208839,1745813507316,-1169.68,0.00039255,60]
[359208840,1745813507341,-1169.68,0.00039255,60]
[359208841,1745813507364,-1169.68,0.00039255,60]
[359208842,1745813507388,-1169.68,0.00039255,60]
[359208843,1745813507412,-1169.81407211,0.00039255,60]
[359208844,1745813507435,-10000.0,0.00039255,30]
[359208845,1745813507458,-164698.84900099,0.00039255,60]
[359208846,1745813507481,-503.37408977,0.00039255,120]
[359208847,1745813507505,-1387.0,0.00039255,37]
[359208848,1745813507724,-500.0,0.00039255,60]
[359208849,1745813507748,-500.0,0.00039255,60]
[359208850,1745813507771,-500.0,0.00039255,60]
[359208851,1745813507796,-500.0,0.00039255,60]
[359208852,1745813507819,-500.0,0.00039255,60]
[359208853,1745813507843,-500.0,0.00039255,60]
[359208854,1745813507866,-500.0,0.00039255,60]
[359208855,1745813507890,-298.37462396,0.00039255,60]
[359208856,1745813507914,-4615.54725733,0.00039255,120]
[359208857,1745813507937,-2500.0,0.00039255,30]
[359208858,1745813507960,-4970.0,0.00039255,120]
[359208859,1745813507982,-12187.81611697,0.00039255,120]
[359208860,1745813508009,-150.0,0.00039255,120]
[359208861,1745813508032,-20303.0,0.00039255,30]
[359208862,1745813508056,-618.0,0.00039255,120]
[359208863,1745813508082,-3531.0,0.00039255,30]
[359208864,1745813508107,-500.62961715,0.00039255,30]
[359208865,1745813508131,-1413.0,0.00039255,120]
[359208866,1745813508155,-931.3539715,0.00039255,35]
[359208867,1745813508179,-1122.8237317,0.00039255,120]